Cogmind - Beta 13 @@@ ROGUE MODE // 2024.03.03 @ 15:34:00 // Winter2019/RPGLIKE Player: surfboardsofcanada Result: Destroyed by as-43314 with Assembled Maul Performance ------------- Evolutions (1) 500 Regions Visited (4) 800 Robots Destroyed (13) 65 Value Destroyed (529) 529 Prototype IDs (1) 20 Alien Tech Used (0) 0 Bonus (200) 200 TOTAL SCORE: 2114 Bonus ------- Pacifist 200 Cogmind --------- Core Integrity 0/800 Matter 300/300 Energy 160/160 System Corruption 5% Temperature Cool (0) Movement Rolling (90) Location -9/Mines Parts ------- > --- POWER (1) -------- Light Nuclear Core > --- PROPULSION (2) --- Wheel Compact Wheel > --- UTILITY (2) ------ Hardened Light Armor Plating > --- WEAPON (3) ------- Katana Katana Katana > --- INVENTORY (4) ---- Protomatter-10 Advanced Weight Redist. System Experimental Sensor Array Katana Peak State ------------ > --- POWER ------------ Improved Ion Engine > --- PROPULSION ------- Wheel Compact Wheel > --- UTILITY ---------- Experimental Sensor Array Targeting Computer > --- WEAPON ----------- Katana Katana Katana > --- INVENTORY -------- Advanced Weight Redist. System Light Armor Plating Katana [Rating: 23] Favorites ----------- Power Improved Ion Engine Engine Improved Ion Engine Power Core Light Nuclear Core Propulsion Wheel Wheel Wheel Utility Targeting Computer Device Experimental Sensor Array Processor Targeting Computer Protection Hardened Light Armor Plating Weapon Katana Energy Gun EM Pulse Gun Special Weapon Mining Laser Slashing Weapon Katana Build | -11 -10 -10 -9 -9 ------- Run | Yrd Mat Min Mat Min Slots Evolved 4 | 3 . . 1 . Power . | . . . . . Propulsion 1 | 1 . . . . Utility 1 | 1 . . . . Weapon 2 | 1 . . 1 . Parts Attached 17 | 5 2 1 5 4 Power 3 | 1 . . 1 1 Engine 2 | 1 . . 1 . Core 1 | . . . . 1 Reactor . | . . . . . Propulsion 2 | 2 . . . . Treads . | . . . . . Leg . | . . . . . Wheel 2 | 2 . . . . Hover . | . . . . . Flight . | . . . . . Utility 6 | . 1 1 1 3 Device 1 | . . 1 . . Storage . | . . . . . Processor 2 | . 1 . . 1 Hackware . | . . . . . Protection 3 | . . . 1 2 Artifact . | . . . . . Weapon 6 | 2 1 . 3 . Energy Gun 2 | 2 . . . . Energy Cannon . | . . . . . Ballistic Gun . | . . . . . Ballistic Cannon . | . . . . . Launcher . | . . . . . Special Weapon 1 | . 1 . . . Impact Weapon . | . . . . . Slashing Weapon 3 | . . . 3 . Piercing Weapon . | . . . . . Special Melee Weapon . | . . . . . Unidentified Prototypes 1 | . . 1 . . Parts Lost 1 | . . . . 1 Power . | . . . . . Propulsion . | . . . . . Utility 1 | . . . . 1 Weapon . | . . . . . Highest Loss Streak 1 | . . . . 1 To Critical Strikes . | . . . . . Average Slot Usage (%) 91 | . 54 76 98 95 Engine 11 | . 14 14 13 9 Core 1 | . . . . 2 Wheel 26 | . 28 28 27 25 Device 5 | . . 5 12 . Processor 12 | . 11 14 13 11 Protection 4 | . . . . 8 Special Weapon 1 | . . 14 . . Slashing Weapon 27 | . . . 27 37 Naked Turns . | . . . . . Heaviest Build 20 | 7 4 5 16 20 Greatest Support 26 | 26 26 26 26 26 Greatest Overweight (x) . | . . . . . Average Overweight (x) . | . . . . . Largest Inventory Capacity 4 | 3 3 3 4 4 Average Capacity 3 | 3 3 3 3 4 Most Carried 4 | 3 3 3 4 4 Average Carried 3 | 1 3 3 3 3 Final Capacity 4 | 3 3 3 4 4 Final Carried 4 | 3 3 3 4 4 Class Distribution -------------------- 78% | Gladiator 21% | Mutant Dominant Class ---------------- Mutant | -10/Materials Mutant | -10/Mines Gladiator | -9/Materials Gladiator | -9/Mines Resources | -11 -10 -10 -9 -9 ----------- Run | Yrd Mat Min Mat Min Matter Collected 370 | 250 . 16 64 40 Remotely . | . . . . . Salvage Created 862 | . . . 531 331 Parts 38 | . . . 23 15 Haulers Intercepted . | . . . . . Recyclers Shooed . | . . . . . Parts Field Recycled . | . . . . . Retrieved Matter . | . . . . . Parts Self-Destructed . | . . . . . Prevented . | . . . . . Kills | -11 -10 -10 -9 -9 ------- Run | Yrd Mat Min Mat Min Combat Hostiles Destroyed 19 | . . . 7 12 Melee 19 | . . . 7 12 Classes Destroyed 5 | . . . 3 2 Watcher 1 | . . . 1 . Grunt 4 | . . . 2 2 Brawler 1 | . . . . 1 Sentry 7 | . . . 5 2 Assembled 7 | . . . . 7 Best Kill Streak 6 | . . . 6 6 Combat Bots Only 6 | . . . 6 6 Max Kills in Single Turn 1 | . . . 1 1 Gunslinging . | . . . . . Exploded . | . . . . . Melee 1 | . . . 1 1 Uniques/NPCs Destroyed . | . . . . . Combat | -11 -10 -10 -9 -9 -------- Run | Yrd Mat Min Mat Min Hostile Shots Fired 102 | . . 6 36 60 Missed 26 | . . . 9 17 Damage Taken 1193 | . . 75 417 701 Core 953 | . . 69 358 526 Absorbed by Shields . | . . . . . Redirected to Core 609 | . . 17 205 387 Core Remaining (%) 94 | 100 . 88 . . Volleys Fired 1 | . . 1 . . Largest 1 | . . 1 . . Hottest 100 | . . 100 . . Shots Fired 1 | . . 1 . . Gun . | . . . . . Cannon . | . . . . . Launcher . | . . . . . Special 1 | . . 1 . . Kinetic . | . . . . . Thermal 1 | . . 1 . . Explosive . | . . . . . Electromagnetic . | . . . . . Robot Hit Streak . | . . . . . Robot Miss Streak . | . . . . . Penetration Max . | . . . . . Secondary Targets . | . . . . . Shots Hit Robots 43 | . . . 16 27 Core Hits 20 | . . . 8 12 Critical Kills . | . . . . . Critical Parts Destroyed . | . . . . . Critical Strikes 4 | . . . 2 2 Sever 4 | . . . 2 2 Melee Attacks 82 | . . . 39 43 Impact . | . . . . . Slashing 82 | . . . 39 43 Piercing . | . . . . . Sneak Attacks 1 | . . . 1 . Combat Hostiles . | . . . . . Follow-up Attacks 11 | . . . 2 9 Damage Inflicted 1492 | . . . 561 931 Guns . | . . . . . Cannons . | . . . . . Explosions . | . . . . . Melee 1492 | . . . 561 931 Ramming . | . . . . . Kinetic . | . . . . . Thermal . | . . . . . Explosive . | . . . . . Electromagnetic . | . . . . . Impact . | . . . . . Slashing 1492 | . . . 561 931 Piercing . | . . . . . Highest Corruption 5 | . . . . 5 Average Corruption 5 | . . . . 5 Corruption Purged . | . . . . . Corruption Blocked . | . . . . . Overload Shots . | . . . . . Overflow Damage 56 | . . . 40 16 Projectiles . | . . . . . Explosions . | . . . . . Melee 56 | . . . 40 16 Knockbacks . | . . . . . Impact . | . . . . . Kinetic . | . . . . . Secondary . | . . . . . Self-Inflicted Damage . | . . . . . Shots . | . . . . . Rammed . | . . . . . Targets Rammed . | . . . . . Kicked . | . . . . . Crushed . | . . . . . Highest Temperature 20 | . . 20 . 18 Average Temperature 10 | . . 12 . 9 Received Heat Transfer 410 | . . 42 111 257 Siege Activations . | . . . . . Robots Corrupted . | . . . . . Combat Hostiles . | . . . . . Parts Fried . | . . . . . Impact Corruptions . | . . . . . Robots Melted . | . . . . . Combat Hostiles . | . . . . . Parts Melted . | . . . . . Heat Transferred . | . . . . . Parts Sabotaged . | . . . . . Parts Stolen . | . . . . . Parts Stripped . | . . . . . Power Chain Reactions . | . . . . . Alert | -11 -10 -10 -9 -9 ------- Run | Yrd Mat Min Mat Min Peak Influence 279 | . 15 6 279 263 Initial 108 | . . 5 1 108 Average 142 | . 2 5 156 199 Maximum Alert Level 1 | . . . 1 1 Low Security (%) 54 | 100 100 100 38 43 Level 1 45 | . . . 61 56 Level 2 . | . . . . . Level 3 . | . . . . . Level 4 . | . . . . . Level 5 . | . . . . . High Security . | . . . . . Max Security . | . . . . . Squads Dispatched 1 | . . . 1 . Investigation . | . . . . . Extermination . | . . . . . Reinforcement 1 | . . . 1 . Assault . | . . . . . Garrison . | . . . . . Intercept . | . . . . . Searches Triggered . | . . . . . Construction Impeded . | . . . . . Haulers Reinforced . | . . . . . Active Scanning Responses . | . . . . . Cargo Convoy Interrupts . | . . . . . Stealth | -11 -10 -10 -9 -9 --------- Run | Yrd Mat Min Mat Min Distress Signals 1 | . . . 1 . Communications Jammed . | . . . . . Distress Signals . | . . . . . Times Spotted 39 | . 2 2 12 23 Peak Tracking Total 9 | . 2 2 6 9 Tactical Retreats 2 | . . . . 2 Traps | -11 -10 -10 -9 -9 ------- Run | Yrd Mat Min Mat Min Traps Triggered . | . . . . . Indirectly . | . . . . . Trap Hack Attempts . | . . . . . Triggered . | . . . . . Disarmed . | . . . . . Reprogrammed . | . . . . . Reused . | . . . . . Traps Extracted . | . . . . . Installed . | . . . . . Triggered . | . . . . . Machines | -11 -10 -10 -9 -9 ---------- Run | Yrd Mat Min Mat Min Machines Disabled . | . . . . . Max in Single Turn . | . . . . . Machines Repaired . | . . . . . Machines Dismantled . | . . . . . Machines Sabotaged . | . . . . . Overloaded Fab Kills . | . . . . . Hacking | -11 -10 -10 -9 -9 --------- Run | Yrd Mat Min Mat Min Machines Accessed 2 | . 1 . 1 . Terminals 2 | . 1 . 1 . Fabricators . | . . . . . Repair Stations . | . . . . . Recycling Units . | . . . . . Scanalyzers . | . . . . . Garrison Access . | . . . . . Total Hacks 4 | . 2 . 2 . Successful 1 | . 1 . . . Failed 3 | . 1 . 2 . Catastrophic . | . . . . . Database Lockouts . | . . . . . Manual . | . . . . . Terminals 4 | . 2 . 2 . Fabricators . | . . . . . Repair Stations . | . . . . . Recycling Units . | . . . . . Scanalyzers . | . . . . . Garrison Access . | . . . . . Terminal Hacks 1 | . 1 . . . Alert Level 1 | . 1 . . . Fabricator Hacks . | . . . . . Repair Station Hacks . | . . . . . Recycling Unit Hacks . | . . . . . Scanalyzer . | . . . . . Garrison Access Hacks . | . . . . . Unauthorized Hacks . | . . . . . Terminals . | . . . . . Fabricators . | . . . . . Repair Stations . | . . . . . Recycling Units . | . . . . . Scanalyzers . | . . . . . Garrison Access . | . . . . . Data Cores Recovered . | . . . . . Used . | . . . . . Hacking Detections 1 | . . . 1 . Full Trace Events . | . . . . . Feedback Events . | . . . . . Feedback Blocked . | . . . . . Robot Schematics Acquired . | . . . . . Robots Built . | . . . . . Authchips . | . . . . . Time . | . . . . . Total Robot Build Rating . | . . . . . Part Schematics Acquired . | . . . . . Parts Built . | . . . . . Authchips . | . . . . . Time . | . . . . . Total Part Build Rating . | . . . . . Parts Repaired . | . . . . . Time . | . . . . . Parts Recycled . | . . . . . Recycled Matter . | . . . . . Retrieved Matter . | . . . . . Retrieved Components . | . . . . . Parts Scanalyzed . | . . . . . Part Schematics Acquired . | . . . . . Parts Damaged . | . . . . . Bothacking | -11 -10 -10 -9 -9 ------------ Run | Yrd Mat Min Mat Min Used RIF Installer . | . . . . . Robots Hacked . | . . . . . Non-combat . | . . . . . Combat . | . . . . . Robot Hacks Applied . | . . . . . Relay Couplers Released . | . . . . . Fabnet Peak Effective % . | . . . . . Robots Rewired . | . . . . . Allies Hacked . | . . . . . Hacks Repelled . | . . . . . Allies | -11 -10 -10 -9 -9 -------- Run | Yrd Mat Min Mat Min Total Allies 5 | . . 3 . 2 Largest Group 3 | . . 3 . 2 Highest-Rated Group 41 | . . 40 . 41 Highest-Rated Ally 31 | . . 16 . 31 Total Orders . | . . . . . Ally Attacks 4 | . . . . 4 Total Damage 62 | . . . . 62 Kills . | . . . . . Allies Corrupted . | . . . . . Allies Melted . | . . . . . Intel | -11 -10 -10 -9 -9 ------- Run | Yrd Mat Min Mat Min Robot Analysis Total . | . . . . . Derelict Logs Recovered 1 | . . 1 . . Drone Launches . | . . . . . Drone Recoveries . | . . . . . Exploration | -11 -10 -10 -9 -9 ------------- Run | Yrd Mat Min Mat Min Turns Passed 920 | 43 54 103 312 408 Spaces Moved 758 | 39 57 109 214 339 Core 3 | 3 . . . . Treads . | . . . . . Legs . | . . . . . Wheels 755 | 36 57 109 214 339 Hover . | . . . . . Flight . | . . . . . Fastest Speed 50 | 50 90 90 90 90 Average Speed 89 | 85 90 90 90 90 Slowest Speed 90 | 90 90 90 90 90 Overloaded Moves . | . . . . . Propulsion Burnouts . | . . . . . Robots Hopped . | . . . . . Cave-ins Triggered 1 | . . . 1 . Exploration Rate (%) 32 | 3 22 36 29 73 Regions Visited 4 Branch Regions 2 Pre-discovered Areas . | . . . . . Known Exits Taken . | . . . . . Unknown Exits Taken 4 | 1 1 1 1 . Scrap Searched 2 | . . 1 . 1 Spaces Dug 18 | . . 1 17 . Terrain Destroyed 18 | . . 1 17 . Melee 17 | . . . 17 . Projectile 1 | . . 1 . . AOE . | . . . . . Terrain Rammed . | . . . . . Walls Destroyed . | . . . . . Machines Disabled . | . . . . . Actions | -11 -10 -10 -9 -9 --------- Run | Yrd Mat Min Mat Min Total 896 | 46 58 110 287 395 Wait 33 | . . . 23 10 Move 754 | 38 56 108 213 339 Hop . | . . . . . Pick Up 11 | 1 . . 7 3 Fast Attach 11 | 5 2 1 2 1 Attach 2 | . . . 2 . Detach 3 | 2 . . 1 . Swap 4 | . . . 1 3 Drop 10 | . . . 7 3 Fire 1 | . . 1 . . Melee 60 | . . . 31 29 Ram . | . . . . . Kick . | . . . . . Crush . | . . . . . Escape Stasis . | . . . . . Rewire . | . . . . . Trap . | . . . . . Miscellaneous 7 | . . . . 7 Route ------- -11/Scrapyard -10/Materials -10/Mines -9/Materials (discovered 2 exits: Mat / [*Min]) -9/Mines History --------- Turn | Location | Event 1 | -11/Scrapyard | Upgraded with Propulsion slot (x1) 1 | -11/Scrapyard | Upgraded with Utility slot (x1) 1 | -11/Scrapyard | Upgraded with Weapon slot (x1) 8 | -11/Scrapyard | Discovered new exit (range 16) 44 | -11/Scrapyard | Entered Materials 90 | -10/Materials | Discovered new exit (range 6) 98 | -10/Materials | Entered Mines 158 | -10/Mines | Found a damaged Exp. Sensor Array with a note attached 160 | -10/Mines | Found Prototype Device 160 | -10/Mines | Identified Exp. Sensor Array 177 | -10/Mines | Assisted by bots powering up and referring to "LRC-V3" 190 | -10/Mines | Learned location of 1 exit from Materials 194 | -10/Mines | Discovered new exit (range 8) 201 | -10/Mines | Entered Materials 202 | -9/Materials | Identified exit to Materials 203 | -9/Materials | Reached level 2 272 | -9/Materials | Crushed by falling debris 303 | -9/Materials | Core integrity fell below 50% 483 | -9/Materials | Reached level 3 486 | -9/Materials | Upgraded with Weapon slot (x1) 502 | -9/Materials | Discovered new exit (range 14) 513 | -9/Materials | Entered Mines 516 | -9/Mines | Build established: Gladiator 767 | -9/Mines | Assembled infested the area 811 | -9/Mines | Core integrity fell below 20% 921 | -9/Mines | Destroyed by as-43314 with Assembled Maul Last Messages --------------- 00800_ Critical hit (Burn: +37). 00802_ as-85865 destroyed. 00804_ Destroyed Asb. F-torch. 00804_ Katana follow-up attack on as-79317. 00807_ as-84792 destroyed. 00825_ as-01058 destroyed. 00832_ G-47 Trooper destroyed. 00836_ Acquired Lgt. Nuclear Core. 00839_ Dropped Imp. Ion Engine. 00839_ Acquired 10 matter. 00870_ Destroyed Asb. Hover Unit. 00873_ as-83247 destroyed. 00897_ Katana follow-up attack on as-68596. 00897_ as-68596 destroyed. 00900_ Acquired Protomatter-10. 00909_ Imp. Targeting Computer destroyed. 00909_ System corrupted by crushing effect (+5). 00909_ Knocked back. 00910_ Katana follow-up attack on as-43314. 00918_ Knocked back. Map ----- +----------------------------------------------------+ | ???????????####### #???????????# #?## | | ?????????????????# #??????????## ## | | ?????????????????# #????????### | | ?????????????????# #???????## | | ?????????????????# #??????## | | ?????????????????# #??????# ### | | ?????????????????# #??????# ##?# | | ?????????????????# #??????## #### | | ?????????????????# #???????## | | ?????????????????# #???????## | | ?????????????????# #???????# | | ?????????????????# #???????# | | ?????????????????? ###?????## ### | | ????????????###??? #????###??## | | ???????????## ### #?????????## | | ???????????? ! ???????????# | | ???????????? =% ????????????# | | ????????????# ????????????## | | ????????????# ?????????????# | | ????????????# a ??????????????# | | ????????????? #????????#####??# | | ?????????????? #?????????? ]!#??## | | ??????????????#= #???????????#%#???## | | ?????????######% #???????????#[#????# | | ????????## ## ! #???????????# #???## | | ???????## @a ##??????????# #?### | | ???????# #??????????# ### | | ???????# #??????????# ## | | ??????## < ##???########=##% | | ??????# ##????# "%"## | | ??????# ##?????#%#########" ## | | ??????## #??#####!#???????# #? | | ???????## ##??# %%[%#??????? | | ????????# ###???# #####??????"" """ | | ???????## ##?????# #?????????""" """ | | ??????## ########*#???????? """ """ | | ??????# %%%[#????????? | | ??????# ###########??????????"" """ | | ??????## #?????????????????????"" "?? | | ???????###??????????????????????"" "?? | | ????????????????????????????????? ??? | | ?????????????????????????????????" ??? | | ?????????????????????????????????" ??? | | ?????????????????????????????????? ??? | | ?????????????????????????????????? ??? | | ?????????????????????????????????????? | | ?????????????????????????????????????? | | ?????????????????????????????????????? | | | | | +----------------------------------------------------+ Best States ------------- Heat Dissipation 25 Energy Generation 14 Energy Capacity 265 Matter Stores 300 Matter Capacity 300 Sight Range 17 Robot Scan Range 20 Terrain Scan Density 10 Armor Coverage 225 Evasion (%) 44 Targeting Accuracy 6 Item Schematics ----------------- None Robot Schematics ------------------ None Fabricated ------------ Nothing Alien Tech Used ----------------- None Achievements -------------- Part-time Excavator Challenges ------------ None RPGLIKE | -11 -10 -10 -9 -9 --------- Run | Yrd Mat Min Mat Min Levels Raised 2 | . . . 2 . XP Earned 7235 | 3000 . 600 2535 1100 XP Spent 5960 | 3000 . . 2960 . Upgrades 16 | 6 . . 10 . Propulsion Slot 1 | 1 . . . . Utility Slot 1 | 1 . . . . Weapon Slot 2 | 1 . . 1 . Core Integrity 4 | . . . 4 . Inventory Capacity 4 | 3 . . 1 . Sight Range 1 | . . . 1 . Melee Accuracy 3 | . . . 3 . Protomatter Created 80 | . . . . 80 Integrity Restored 147 | . . . . 147 Core 147 | . . . . 147 Protomatter Decayed . | . . . . . Game ------ Seed CooledRefinerySystem Manual? 0 Play Time 00:19:16 Cumulative 18.9 hours Start 2024.03.03 @ 15:18:48 End 2024.03.03 @ 15:34:00 Sessions 1 Manual Loads 0 Difficulty Rogue Special Mode Winter2019/RPGLIKE Game No. 32 Rogue 21 Adventurer 11 Explorer 0 Win Type - Total 0 Types 0/0/0/0/0/0/0/0/0 Lore% 22 Gallery% 26 Achievement% 32 Wizard Run 0 Options --------- Layout 0 ASCII 0 Keyboard 0 Movement Mouse Keybinds 0 Fullscreen 2 Font 18/SmallcapsGlow Map View 76x50 Zoom Use 0% Tactical HUD 1 Map Filters NONE Filters NONE Steam 1 RUN: e1813e0b-2ed3-4edd-9d49-f8d80cad73d4